[Event "*** Titled Tuesday Blitz"]
[Site "Chess.com"]
[Date "2020.12.01"]
[Round "6"]
[White "Fh2411"]
[Black "Mikasinski"]
[Result "1/2-1/2"]
[WhiteElo "2544"]
[BlackElo "2305"]
[TimeControl "180+1"]
[EndTime "11:06:45 PST"]
[Termination "Game drawn - insufficient material"]

1. d4 {[%clk 0:03:00.9]} 1... Nf6 {[%clk 0:03:00.2]} 2. Nf3 {[%clk 0:03:00.8]}
2... g6 {[%clk 0:03:00.9]} 3. g3 {[%clk 0:03:00.5]} 3... Bg7 {[%clk 0:03:01.5]}
4. Bg2 {[%clk 0:03:01.4]} 4... O-O {[%clk 0:03:02.2]} 5. O-O {[%clk 0:03:02.3]}
5... d6 {[%clk 0:03:02.9]} 6. c4 {[%clk 0:03:02.8]} 6... Nc6 {[%clk 0:03:03.2]}
7. d5 {[%clk 0:03:01]} 7... Na5 {[%clk 0:03:02.8]} 8. Nfd2 {[%clk 0:03:01.1]}
8... c5 {[%clk 0:03:03.4]} 9. Nc3 {[%clk 0:03:00.2]} 9... a6 {[%clk 0:03:03.2]}
10. a4 {[%clk 0:02:59.5]} 10... e5 {[%clk 0:02:58.8]} 11. e4 {[%clk 0:02:54.3]}
11... Bg4 {[%clk 0:02:46.5]} 12. Qc2 {[%clk 0:02:47.9]} 12... Qd7 {[%clk
0:02:43.1]} 13. Rb1 {[%clk 0:02:47.4]} 13... Rac8 {[%clk 0:02:24.1]} 14. b3
{[%clk 0:02:46.6]} 14... Bh3 {[%clk 0:02:20.8]} 15. Ba3 {[%clk 0:02:45]} 15...
Bh6 {[%clk 0:01:50.7]} 16. Nf3 {[%clk 0:02:30.8]} 16... Nh5 {[%clk 0:01:41.9]}
17. Qe2 {[%clk 0:02:24.7]} 17... Qg4 {[%clk 0:01:27.4]} 18. Nh4 {[%clk
0:02:08.6]} 18... Qxe2 {[%clk 0:01:10.4]} 19. Nxe2 {[%clk 0:02:09.5]} 19... Bxg2
{[%clk 0:01:08.5]} 20. Nxg2 {[%clk 0:01:58.3]} 20... f5 {[%clk 0:01:07.9]} 21.
f3 {[%clk 0:01:53.8]} 21... fxe4 {[%clk 0:01:08]} 22. fxe4 {[%clk 0:01:53.5]}
22... Nf6 {[%clk 0:01:08.5]} 23. Nc3 {[%clk 0:01:52]} 23... Bd2 {[%clk
0:01:07.5]} 24. Bb2 {[%clk 0:01:43.8]} 24... Nxb3 {[%clk 0:01:05.1]} 25. Rf2
{[%clk 0:01:34]} 25... Nd4 {[%clk 0:01:00.6]} 26. Rbf1 {[%clk 0:01:28.5]} 26...
Bxc3 {[%clk 0:00:43.3]} 27. Bxc3 {[%clk 0:01:18.1]} 27... Nxe4 {[%clk
0:00:43.6]} 28. Rxf8+ {[%clk 0:01:18.2]} 28... Rxf8 {[%clk 0:00:44]} 29. Rxf8+
{[%clk 0:01:18.3]} 29... Kxf8 {[%clk 0:00:44.6]} 30. Ba5 {[%clk 0:01:18.3]}
30... Ke7 {[%clk 0:00:24.5]} 31. Ne3 {[%clk 0:01:18.1]} 31... Kd7 {[%clk
0:00:17]} 32. Kg2 {[%clk 0:01:14.2]} 32... Ng5 {[%clk 0:00:15.8]} 33. h4 {[%clk
0:01:12]} 33... Nf7 {[%clk 0:00:15.8]} 34. Kh3 {[%clk 0:01:08.8]} 34... h5
{[%clk 0:00:15.9]} 35. g4 {[%clk 0:01:06.6]} 35... Nh6 {[%clk 0:00:16.2]} 36.
gxh5 {[%clk 0:01:02.7]} 36... gxh5 {[%clk 0:00:17.1]} 37. Nf1 {[%clk 0:00:59.6]}
37... Nhf5 {[%clk 0:00:17.2]} 38. Bd2 {[%clk 0:00:55.1]} 38... e4 {[%clk
0:00:17.2]} 39. Bf4 {[%clk 0:00:38.8]} 39... b5 {[%clk 0:00:16.4]} 40. cxb5
{[%clk 0:00:35.1]} 40... axb5 {[%clk 0:00:17.3]} 41. a5 {[%clk 0:00:33.2]} 41...
b4 {[%clk 0:00:17.8]} 42. Nd2 {[%clk 0:00:32.6]} 42... b3 {[%clk 0:00:17.2]} 43.
Nxe4 {[%clk 0:00:31.2]} 43... b2 {[%clk 0:00:17]} 44. Nc3 {[%clk 0:00:31.7]}
44... Nb5 {[%clk 0:00:15.3]} 45. Nb1 {[%clk 0:00:31.1]} 45... c4 {[%clk
0:00:15.7]} 46. Bd2 {[%clk 0:00:30.3]} 46... Ne7 {[%clk 0:00:15.1]} 47. Bc3
{[%clk 0:00:23.4]} 47... Nxd5 {[%clk 0:00:14.8]} 48. Bxb2 {[%clk 0:00:23]} 48...
c3 {[%clk 0:00:14.4]} 49. Bc1 {[%clk 0:00:21.6]} 49... Kc6 {[%clk 0:00:12]} 50.
Kg3 {[%clk 0:00:20.5]} 50... Kc5 {[%clk 0:00:12.3]} 51. Kf3 {[%clk 0:00:20.9]}
51... Kc4 {[%clk 0:00:12.7]} 52. Ke4 {[%clk 0:00:20.9]} 52... Ndc7 {[%clk
0:00:11.8]} 53. Kf5 {[%clk 0:00:18.1]} 53... d5 {[%clk 0:00:12.1]} 54. Kg6
{[%clk 0:00:18.4]} 54... d4 {[%clk 0:00:12.6]} 55. Kxh5 {[%clk 0:00:18.9]} 55...
d3 {[%clk 0:00:12.8]} 56. Kg6 {[%clk 0:00:19.3]} 56... Kb3 {[%clk 0:00:13]} 57.
h5 {[%clk 0:00:18.9]} 57... Kc2 {[%clk 0:00:13.2]} 58. Nxc3 {[%clk 0:00:11.4]}
58... Kxc1 {[%clk 0:00:10.8]} 59. Ne4 {[%clk 0:00:07.9]} 59... Nd6 {[%clk
0:00:05.3]} 60. Nf2 {[%clk 0:00:08.1]} 60... d2 {[%clk 0:00:05.5]} 61. h6 {[%clk
0:00:08.4]} 61... Ne6 {[%clk 0:00:01.7]} 62. Kf6 {[%clk 0:00:06.9]} 62... Nf8
{[%clk 0:00:01.2]} 63. Ke5 {[%clk 0:00:05.4]} 63... Nf7+ {[%clk 0:00:01]} 64.
Kd4 {[%clk 0:00:03.6]} 64... Nxh6 {[%clk 0:00:01.9]} 65. a6 {[%clk 0:00:04.4]}
65... Nd7 {[%clk 0:00:02.4]} 66. a7 {[%clk 0:00:03.9]} 66... Nb6 {[%clk
0:00:03]} 67. Kc5 {[%clk 0:00:04.6]} 67... Na8 {[%clk 0:00:03.7]} 68. Kc6 {[%clk
0:00:05.1]} 68... Nf5 {[%clk 0:00:04.4]} 69. Kb7 {[%clk 0:00:05]} 69... Nd4
{[%clk 0:00:04.9]} 70. Kxa8 {[%clk 0:00:04.9]} 70... Nc6 {[%clk 0:00:04]} 71.
Kb7 {[%clk 0:00:04.9]} 71... Nxa7 {[%clk 0:00:04.4]} 72. Kxa7 {[%clk 0:00:05.8]}
72... Kc2 {[%clk 0:00:04.9]} 73. Kb6 {[%clk 0:00:06]} 73... Kc3 {[%clk
0:00:05.5]} 74. Kc5 {[%clk 0:00:06.3]} 74... d1=Q {[%clk 0:00:05.6]} 75. Nxd1+
{[%clk 0:00:05.6]} 1/2-1/2

[Event "*** Titled Tuesday Blitz"]
[Site "Chess.com"]
[Date "2020.12.01"]
[Round "6"]
[White "Xeniya2005"]
[Black "elamier"]
[Result "1/2-1/2"]
[WhiteElo "2430"]
[BlackElo "2314"]
[TimeControl "180+1"]
[EndTime "11:06:45 PST"]
[Termination "Game drawn by repetition"]

1. e4 {[%clk 0:03:00.9]} 1... c5 {[%clk 0:02:58.8]} 2. Nf3 {[%clk 0:03:00.4]}
2... e6 {[%clk 0:02:58.8]} 3. d4 {[%clk 0:03:00]} 3... cxd4 {[%clk 0:02:59.2]}
4. Nxd4 {[%clk 0:03:00.9]} 4... Nf6 {[%clk 0:02:59.4]} 5. Nc3 {[%clk 0:03:00.3]}
5... Nc6 {[%clk 0:02:59.8]} 6. Ndb5 {[%clk 0:02:56.8]} 6... Bb4 {[%clk
0:02:58.6]} 7. a3 {[%clk 0:02:56]} 7... Bxc3+ {[%clk 0:02:58.5]} 8. Nxc3 {[%clk
0:02:56.9]} 8... d5 {[%clk 0:02:58.9]} 9. exd5 {[%clk 0:02:57]} 9... exd5 {[%clk
0:02:59.2]} 10. Bd3 {[%clk 0:02:57.4]} 10... O-O {[%clk 0:02:58.2]} 11. O-O
{[%clk 0:02:56.8]} 11... d4 {[%clk 0:02:59.1]} 12. Ne2 {[%clk 0:02:54]} 12...
Bg4 {[%clk 0:02:58]} 13. f3 {[%clk 0:02:53.3]} 13... Bh5 {[%clk 0:02:56.3]} 14.
Bg5 {[%clk 0:02:49]} 14... Qd6 {[%clk 0:02:54.5]} 15. Qd2 {[%clk 0:02:45.2]}
15... Bg6 {[%clk 0:02:53]} 16. Bxg6 {[%clk 0:02:35.2]} 16... hxg6 {[%clk
0:02:52.3]} 17. Ng3 {[%clk 0:02:34.3]} 17... Rfe8 {[%clk 0:02:45.6]} 18. Rad1
{[%clk 0:02:28.5]} 18... Qc5 {[%clk 0:02:33.5]} 19. Kh1 {[%clk 0:02:26]} 19...
Nd5 {[%clk 0:02:26.7]} 20. Ne4 {[%clk 0:02:20.7]} 20... Qb6 {[%clk 0:02:26.2]}
21. c4 {[%clk 0:02:15.2]} 21... Ne3 {[%clk 0:02:22]} 22. Bxe3 {[%clk 0:02:11.9]}
22... dxe3 {[%clk 0:02:22.9]} 23. Qe2 {[%clk 0:02:04.7]} 23... f5 {[%clk
0:02:18.2]} 24. c5 {[%clk 0:01:50.7]} 24... Qa6 {[%clk 0:02:06.4]} 25. Nc3
{[%clk 0:01:48.6]} 25... Qxe2 {[%clk 0:02:02.4]} 26. Nxe2 {[%clk 0:01:48]} 26...
Rad8 {[%clk 0:02:01.8]} 27. Kg1 {[%clk 0:01:46.8]} 27... Rd2 {[%clk 0:01:58.2]}
28. Rxd2 {[%clk 0:01:37.2]} 28... exd2 {[%clk 0:01:57.6]} 29. Kf2 {[%clk
0:01:35.8]} 29... Ne5 {[%clk 0:01:48.1]} 30. Rd1 {[%clk 0:01:32.1]} 30... Nd3+
{[%clk 0:01:18.9]} 31. Kf1 {[%clk 0:01:28]} 31... Nxb2 {[%clk 0:01:16.2]} 32.
Rxd2 {[%clk 0:01:26.2]} 32... Na4 {[%clk 0:01:16.2]} 33. Rd7 {[%clk 0:00:53.1]}
33... Nxc5 {[%clk 0:01:15.2]} 34. Rc7 {[%clk 0:00:52.6]} 34... b6 {[%clk
0:00:55.5]} 35. Rxa7 {[%clk 0:00:50.4]} 35... Rd8 {[%clk 0:00:52.8]} 36. Nf4
{[%clk 0:00:43.3]} 36... g5 {[%clk 0:00:48.5]} 37. Nh5 {[%clk 0:00:41.3]} 37...
Rd7 {[%clk 0:00:48.1]} 38. Rxd7 {[%clk 0:00:36]} 38... Nxd7 {[%clk 0:00:47.4]}
39. Ng3 {[%clk 0:00:35.7]} 39... g6 {[%clk 0:00:46.9]} 40. Ne2 {[%clk
0:00:35.5]} 40... Kf7 {[%clk 0:00:43.2]} 41. Nd4 {[%clk 0:00:34.9]} 41... Kf6
{[%clk 0:00:41.5]} 42. Ke2 {[%clk 0:00:34.5]} 42... Ke5 {[%clk 0:00:40.3]} 43.
Kd3 {[%clk 0:00:33.8]} 43... Kd5 {[%clk 0:00:39.6]} 44. Nc2 {[%clk 0:00:20.6]}
44... Nc5+ {[%clk 0:00:33.5]} 45. Kc3 {[%clk 0:00:19.9]} 45... Ke5 {[%clk
0:00:32.1]} 46. Kc4 {[%clk 0:00:17.1]} 46... Kf4 {[%clk 0:00:28.9]} 47. Nd4
{[%clk 0:00:16.7]} 47... Ke3 {[%clk 0:00:27.5]} 48. g4 {[%clk 0:00:09.4]} 48...
f4 {[%clk 0:00:23.3]} 49. Kd5 {[%clk 0:00:06.1]} 49... Nd3 {[%clk 0:00:21.4]}
50. Ne6 {[%clk 0:00:02.9]} 50... Kxf3 {[%clk 0:00:21]} 51. Nxg5+ {[%clk
0:00:03.3]} 51... Kxg4 {[%clk 0:00:21.1]} 52. Ne4 {[%clk 0:00:03.3]} 52... f3
{[%clk 0:00:20.8]} 53. Kc6 {[%clk 0:00:02.4]} 53... f2 {[%clk 0:00:21.2]} 54.
Nxf2+ {[%clk 0:00:02.1]} 54... Nxf2 {[%clk 0:00:21.7]} 55. Kxb6 {[%clk
0:00:02.5]} 55... Nd3 {[%clk 0:00:21.1]} 56. a4 {[%clk 0:00:02.5]} 56... Nb4
{[%clk 0:00:20.8]} 57. a5 {[%clk 0:00:02.5]} 57... Kh3 {[%clk 0:00:19.6]} 58.
Kb5 {[%clk 0:00:02.6]} 58... Nd5 {[%clk 0:00:19.7]} 59. Kc5 {[%clk 0:00:02]}
59... Nc7 {[%clk 0:00:19.7]} 60. Kc6 {[%clk 0:00:02.2]} 60... Na6 {[%clk
0:00:13.3]} 61. Kb6 {[%clk 0:00:02.3]} 61... Nb4 {[%clk 0:00:13.3]} 62. Kb5
{[%clk 0:00:02.4]} 62... Nd5 {[%clk 0:00:13.5]} 63. Kc5 {[%clk 0:00:02.5]} 63...
Nc7 {[%clk 0:00:11.7]} 64. Kc6 {[%clk 0:00:02.3]} 64... Na6 {[%clk 0:00:10.5]}
65. Kb6 {[%clk 0:00:02.4]} 65... Nb8 {[%clk 0:00:11]} 66. Kb7 {[%clk 0:00:02.3]}
66... Nd7 {[%clk 0:00:11.3]} 67. Kc7 {[%clk 0:00:02.4]} 67... Nc5 {[%clk
0:00:11.6]} 68. Kc6 {[%clk 0:00:02.4]} 68... Na6 {[%clk 0:00:11.5]} 1/2-1/2

[Event "*** Titled Tuesday Blitz"]
[Site "Chess.com"]
[Date "2020.12.01"]
[Round "6"]
[White "Luklei18"]
[Black "Witik"]
[Result "0-1"]
[WhiteElo "2442"]
[BlackElo "2615"]
[TimeControl "180+1"]
[EndTime "11:06:49 PST"]
[Termination "Witik won by resignation"]

1. c4 {[%clk 0:03:00.9]} 1... e5 {[%clk 0:02:59.1]} 2. Nc3 {[%clk 0:03:01.4]}
2... Bb4 {[%clk 0:02:58.8]} 3. Qc2 {[%clk 0:03:00.9]} 3... c6 {[%clk 0:02:57.6]}
4. Nf3 {[%clk 0:02:59.1]} 4... Qe7 {[%clk 0:02:57.7]} 5. e4 {[%clk 0:02:55.7]}
5... Nf6 {[%clk 0:02:57.3]} 6. d3 {[%clk 0:02:51.6]} 6... d5 {[%clk 0:02:54.2]}
7. cxd5 {[%clk 0:02:37.5]} 7... cxd5 {[%clk 0:02:54]} 8. a3 {[%clk 0:02:38.1]}
8... Bxc3+ {[%clk 0:02:34.7]} 9. Qxc3 {[%clk 0:02:39]} 9... Nc6 {[%clk
0:02:33.8]} 10. Bg5 {[%clk 0:02:38.8]} 10... d4 {[%clk 0:02:19.4]} 11. Qc2
{[%clk 0:02:04.2]} 11... Be6 {[%clk 0:02:15.4]} 12. Rc1 {[%clk 0:01:56.6]} 12...
h6 {[%clk 0:02:12.6]} 13. Bxf6 {[%clk 0:01:55.1]} 13... Qxf6 {[%clk 0:02:11.5]}
14. b4 {[%clk 0:01:52.7]} 14... O-O {[%clk 0:02:08.9]} 15. Be2 {[%clk
0:01:26.4]} 15... Rfc8 {[%clk 0:02:03.4]} 16. Qb2 {[%clk 0:01:23.2]} 16... Ne7
{[%clk 0:01:49.3]} 17. O-O {[%clk 0:01:20.5]} 17... Ng6 {[%clk 0:01:48.9]} 18.
Rxc8+ {[%clk 0:01:14.2]} 18... Rxc8 {[%clk 0:01:48.4]} 19. Rc1 {[%clk
0:01:14.8]} 19... Nf4 {[%clk 0:01:39.6]} 20. Bf1 {[%clk 0:01:03.5]} 20... Rxc1
{[%clk 0:00:58]} 21. Qxc1 {[%clk 0:01:04.4]} 21... Bg4 {[%clk 0:00:58.5]} 22.
Ne1 {[%clk 0:00:57.1]} 22... g6 {[%clk 0:00:50.8]} 23. f3 {[%clk 0:00:55.9]}
23... Bd7 {[%clk 0:00:50.1]} 24. Qc7 {[%clk 0:00:52.6]} 24... Bc6 {[%clk
0:00:48.6]} 25. Qb8+ {[%clk 0:00:45]} 25... Kg7 {[%clk 0:00:48.5]} 26. Qxa7
{[%clk 0:00:45.7]} 26... Qg5 {[%clk 0:00:48.2]} 27. g3 {[%clk 0:00:25.4]} 27...
Ne6 {[%clk 0:00:44.7]} 28. Ng2 {[%clk 0:00:25.8]} 28... Qd2 {[%clk 0:00:41.9]}
29. Qb8 {[%clk 0:00:25.1]} 29... Ng5 {[%clk 0:00:36.5]} 30. Qxe5+ {[%clk
0:00:24.2]} 30... Kh7 {[%clk 0:00:37]} 31. Nh4 {[%clk 0:00:16]} 31... Qe3+
{[%clk 0:00:35]} 32. Kg2 {[%clk 0:00:14.7]} 32... Qd2+ {[%clk 0:00:34]} 33. Kg1
{[%clk 0:00:14.9]} 33... Qe3+ {[%clk 0:00:28.6]} 34. Kg2 {[%clk 0:00:15.4]}
34... Bd7 {[%clk 0:00:29]} 35. g4 {[%clk 0:00:11.1]} 35... Qd2+ {[%clk
0:00:23.2]} 36. Kg1 {[%clk 0:00:11.6]} 36... Qe3+ {[%clk 0:00:19.8]} 37. Kg2
{[%clk 0:00:12.1]} 37... h5 {[%clk 0:00:09.9]} 38. Qg3 {[%clk 0:00:06]} 38...
hxg4 {[%clk 0:00:05.9]} 39. fxg4 {[%clk 0:00:06.4]} 39... Qd2+ {[%clk
0:00:06.2]} 40. Kg1 {[%clk 0:00:06.8]} 40... Qc3 {[%clk 0:00:05]} 41. Ng2 {[%clk
0:00:07]} 41... Ne6 {[%clk 0:00:04.4]} 42. e5 {[%clk 0:00:04.2]} 42... Qxa3
{[%clk 0:00:04.2]} 43. Qh4+ {[%clk 0:00:04.8]} 43... Kg8 {[%clk 0:00:04.2]} 44.
Qe7 {[%clk 0:00:04.6]} 44... Bc6 {[%clk 0:00:02.8]} 45. h4 {[%clk 0:00:03.3]}
45... Bxg2 {[%clk 0:00:02.4]} 46. Bxg2 {[%clk 0:00:03.5]} 46... Qc1+ {[%clk
0:00:03]} 47. Kh2 {[%clk 0:00:03.8]} 47... Qf4+ {[%clk 0:00:03.7]} 48. Kg1
{[%clk 0:00:04.3]} 48... Qxe5 {[%clk 0:00:04]} 49. Qxb7 {[%clk 0:00:04.6]} 49...
Qe1+ {[%clk 0:00:04.2]} 50. Kh2 {[%clk 0:00:04.7]} 50... Qxh4+ {[%clk
0:00:05.1]} 51. Kg1 {[%clk 0:00:05.2]} 51... Qg3 {[%clk 0:00:05]} 52. Qf3 {[%clk
0:00:04.9]} 52... Qe1+ {[%clk 0:00:04.9]} 53. Kh2 {[%clk 0:00:05.1]} 53... Qe5+
{[%clk 0:00:05.5]} 54. Kg1 {[%clk 0:00:05]} 54... Nf4 {[%clk 0:00:06.2]} 55. Qe4
{[%clk 0:00:03.7]} 55... Qg5 {[%clk 0:00:06.2]} 56. Bf3 {[%clk 0:00:03.1]} 56...
Ne6 {[%clk 0:00:05.9]} 57. Qd5 {[%clk 0:00:02.4]} 57... Qc1+ {[%clk 0:00:05.5]}
58. Kg2 {[%clk 0:00:02.9]} 58... Qb2+ {[%clk 0:00:05.8]} 59. Kg3 {[%clk
0:00:02.5]} 59... Qxb4 {[%clk 0:00:06.4]} 60. Qa8+ {[%clk 0:00:01.8]} 60... Kg7
{[%clk 0:00:06.2]} 61. Qd5 {[%clk 0:00:02.7]} 61... Qe1+ {[%clk 0:00:06.2]} 62.
Kg2 {[%clk 0:00:02.8]} 62... Qe3 {[%clk 0:00:07.1]} 63. Qe4 {[%clk 0:00:02.8]}
63... Nf4+ {[%clk 0:00:06.9]} 64. Kg3 {[%clk 0:00:03]} 64... Nxd3 {[%clk
0:00:07.2]} 65. Qxe3 {[%clk 0:00:02.5]} 65... dxe3 {[%clk 0:00:07.6]} 66. Be2
{[%clk 0:00:03.2]} 66... Nc1 {[%clk 0:00:05.9]} 67. Kf3 {[%clk 0:00:03.7]} 67...
Nxe2 {[%clk 0:00:05.7]} 68. Kxe2 {[%clk 0:00:04.6]} 68... Kf6 {[%clk 0:00:06.1]}
69. Kxe3 {[%clk 0:00:05.5]} 69... Kg5 {[%clk 0:00:06.3]} 70. Kf3 {[%clk
0:00:06.4]} 70... Kh4 {[%clk 0:00:06.8]} 71. Kf4 {[%clk 0:00:06.8]} 71... g5+
{[%clk 0:00:06.6]} 72. Kf5 {[%clk 0:00:06.5]} 72... f6 {[%clk 0:00:07]} 0-1

[Event "*** Titled Tuesday Blitz"]
[Site "Chess.com"]
[Date "2020.12.01"]
[Round "6"]
[White "ehrenfeld"]
[Black "HackingKid98"]
[Result "0-1"]
[WhiteElo "2488"]
[BlackElo "2363"]
[TimeControl "180+1"]
[EndTime "11:06:54 PST"]
[Termination "HackingKid98 won by checkmate"]

1. e4 {[%clk 0:02:33.4]} 1... c6 {[%clk 0:02:58.6]} 2. d4 {[%clk 0:02:32.9]}
2... d5 {[%clk 0:02:59.5]} 3. exd5 {[%clk 0:02:33.2]} 3... cxd5 {[%clk
0:02:58.6]} 4. Bd3 {[%clk 0:02:34.1]} 4... Nf6 {[%clk 0:02:58.5]} 5. c3 {[%clk
0:02:34.4]} 5... g6 {[%clk 0:02:58.8]} 6. Nf3 {[%clk 0:02:33.4]} 6... Bg7 {[%clk
0:02:58.8]} 7. O-O {[%clk 0:02:33.8]} 7... O-O {[%clk 0:02:58.8]} 8. Re1 {[%clk
0:02:32.8]} 8... Bf5 {[%clk 0:02:56.2]} 9. Bf1 {[%clk 0:02:32.4]} 9... Nc6
{[%clk 0:02:53.5]} 10. Bf4 {[%clk 0:02:30.1]} 10... Rc8 {[%clk 0:02:52.9]} 11.
Nbd2 {[%clk 0:02:29.6]} 11... Na5 {[%clk 0:02:52.4]} 12. h3 {[%clk 0:02:28.5]}
12... Nc4 {[%clk 0:02:52.1]} 13. Nxc4 {[%clk 0:02:27.7]} 13... dxc4 {[%clk
0:02:53]} 14. Ne5 {[%clk 0:02:25.3]} 14... b5 {[%clk 0:02:51.6]} 15. g4 {[%clk
0:02:24.6]} 15... Be6 {[%clk 0:02:45.7]} 16. Bg2 {[%clk 0:02:23.4]} 16... Bd5
{[%clk 0:02:45]} 17. a4 {[%clk 0:02:20.6]} 17... a6 {[%clk 0:02:39.4]} 18. axb5
{[%clk 0:02:20.1]} 18... axb5 {[%clk 0:02:40.3]} 19. Ra6 {[%clk 0:02:09.2]}
19... Bxg2 {[%clk 0:02:36.2]} 20. Kxg2 {[%clk 0:02:08.3]} 20... Nd5 {[%clk
0:02:37.1]} 21. Bd2 {[%clk 0:02:05.8]} 21... e6 {[%clk 0:02:32.6]} 22. Qf3
{[%clk 0:01:54.8]} 22... Qc7 {[%clk 0:02:18.7]} 23. Qe4 {[%clk 0:01:31]} 23...
Ra8 {[%clk 0:02:05.5]} 24. Rea1 {[%clk 0:01:27.2]} 24... Qb7 {[%clk 0:02:01.3]}
25. Rxa8 {[%clk 0:01:24.4]} 25... Rxa8 {[%clk 0:02:02.2]} 26. Rxa8+ {[%clk
0:01:22.7]} 26... Qxa8 {[%clk 0:02:03.1]} 27. Nd7 {[%clk 0:01:03.1]} 27... Nf4+
{[%clk 0:00:59.7]} 28. Kf3 {[%clk 0:01:02.5]} 28... Qxe4+ {[%clk 0:00:59.8]} 29.
Kxe4 {[%clk 0:01:02.5]} 29... Nxh3 {[%clk 0:00:50.2]} 30. Be3 {[%clk 0:01:01.5]}
30... h6 {[%clk 0:00:26.5]} 31. f4 {[%clk 0:00:56.6]} 31... f5+ {[%clk
0:00:16.6]} 32. Kf3 {[%clk 0:00:56.7]} 32... g5 {[%clk 0:00:13.6]} 33. Nc5
{[%clk 0:00:50.2]} 33... Nxf4 {[%clk 0:00:11.1]} 34. Bxf4 {[%clk 0:00:48.5]}
34... gxf4 {[%clk 0:00:11.6]} 35. Nxe6 {[%clk 0:00:44.2]} 35... fxg4+ {[%clk
0:00:11.8]} 36. Kxg4 {[%clk 0:00:43.4]} 36... Kf7 {[%clk 0:00:10.9]} 37. Nc7
{[%clk 0:00:39.2]} 37... b4 {[%clk 0:00:09.1]} 38. Nb5 {[%clk 0:00:31.7]} 38...
bxc3 {[%clk 0:00:10]} 39. bxc3 {[%clk 0:00:31.3]} 39... Ke6 {[%clk 0:00:09.8]}
40. Kxf4 {[%clk 0:00:27.7]} 40... Kd5 {[%clk 0:00:09.8]} 41. Nc7+ {[%clk
0:00:26.7]} 41... Kc6 {[%clk 0:00:09.4]} 42. Ne6 {[%clk 0:00:24]} 42... Bf6
{[%clk 0:00:07]} 43. Kf5 {[%clk 0:00:22.8]} 43... Bh4 {[%clk 0:00:06.7]} 44. Nf4
{[%clk 0:00:21.2]} 44... Be1 {[%clk 0:00:05.8]} 45. Ne2 {[%clk 0:00:20.7]} 45...
Kd5 {[%clk 0:00:05.7]} 46. Nf4+ {[%clk 0:00:20.2]} 46... Kd6 {[%clk 0:00:05.6]}
47. Ne2 {[%clk 0:00:19.2]} 47... Kd5 {[%clk 0:00:05.7]} 48. Nf4+ {[%clk
0:00:19.2]} 48... Kd6 {[%clk 0:00:05.8]} 49. Ne2 {[%clk 0:00:18.5]} 49... h5
{[%clk 0:00:06]} 50. Kg5 {[%clk 0:00:15.7]} 50... Kd5 {[%clk 0:00:05.9]} 51.
Kxh5 {[%clk 0:00:12.3]} 51... Ke4 {[%clk 0:00:06.1]} 52. Kg4 {[%clk 0:00:12.5]}
52... Ke3 {[%clk 0:00:05.8]} 53. Nf4 {[%clk 0:00:09.8]} 53... Bxc3 {[%clk
0:00:05.3]} 54. d5 {[%clk 0:00:09.1]} 54... Be5 {[%clk 0:00:03.8]} 55. Ng6
{[%clk 0:00:08.5]} 55... Bd6 {[%clk 0:00:02.8]} 56. Kf5 {[%clk 0:00:07.8]} 56...
c3 {[%clk 0:00:02.8]} 57. Ke6 {[%clk 0:00:07.8]} 57... c2 {[%clk 0:00:03.7]} 58.
Kxd6 {[%clk 0:00:08]} 58... c1=Q {[%clk 0:00:03.8]} 59. Ke6 {[%clk 0:00:08.3]}
59... Ke4 {[%clk 0:00:03.4]} 60. d6 {[%clk 0:00:08.1]} 60... Qc4+ {[%clk
0:00:03.1]} 61. Ke7 {[%clk 0:00:07.6]} 61... Qc5 {[%clk 0:00:02.1]} 62. Nf8
{[%clk 0:00:07.4]} 62... Qe5+ {[%clk 0:00:01.5]} 63. Ne6 {[%clk 0:00:06.9]}
63... Kd5 {[%clk 0:00:01.2]} 64. d7 {[%clk 0:00:07.1]} 64... Qxe6+ {[%clk
0:00:02.1]} 65. Kd8 {[%clk 0:00:05.3]} 65... Qd6 {[%clk 0:00:03]} 66. Kc8 {[%clk
0:00:04.7]} 66... Qc6+ {[%clk 0:00:03.2]} 67. Kd8 {[%clk 0:00:04.2]} 67... Ke6
{[%clk 0:00:02.6]} 68. Ke8 {[%clk 0:00:02]} 68... Qxd7+ {[%clk 0:00:03.4]} 69.
Kf8 {[%clk 0:00:02]} 69... Qf7# {[%clk 0:00:04.3]} 0-1